bitfinex/quotes_SOLUSD_20250705
["timestamp","ask_amount","ask_price","bid_price","bid_amount"]
[1751700517124,1e-08,148.47,148.44,10.54289935]
[1751700517299,5.04057265,148.46,148.44,10.54289935]
[1751700517499,1e-08,148.47,148.44,10.54289935]
[1751700517799,5.04057126,148.46,148.44,10.54289935]
[1751700518128,1e-08,148.47,148.44,10.54289935]
[1751700518423,5.04059917,148.46,148.44,10.54289935]
[1751700518615,1e-08,148.47,148.44,10.54289935]
[1751700518917,5.04061143,148.46,148.44,10.54289935]
[1751700519116,1e-08,148.47,148.44,10.54289935]
[1751700519320,5.04065531,148.46,148.44,10.54289935]
[1751700519523,1e-08,148.47,148.44,10.54289935]
[1751700519729,5.04068929,148.46,148.44,10.54289935]
[1751700519904,1e-08,148.47,148.44,10.54289935]
[1751700520104,5.04068843,148.46,148.44,10.54289935]
[1751700520413,1e-08,148.47,148.44,10.54289935]
[1751700520614,5.04152913,148.46,148.44,10.54289935]
[1751700520814,1e-08,148.47,148.44,10.54289935]
[1751700521129,5.04152784,148.46,148.44,10.54289935]
[1751700521312,1e-08,148.47,148.44,10.54289935]
[1751700521513,5.04250517,148.46,148.44,10.54289935]
[1751700521716,5.04250517,148.45,148.44,10.54289935]
[1751700525831,5.04250517,148.45,148.43,6.76718251]
[1751700526131,1e-08,148.47,148.44,3.80647657]
[1751700526339,5.04878166,148.46,148.44,3.80647657]
[1751700526517,5.04878166,148.45,148.44,3.80647657]
[1751700527330,5.04878166,148.45,148.43,10.57365908]
[1751700527624,5.04878166,148.44,148.43,10.57365908]
[1751700541626,5.05015144,148.44,148.43,10.57365908]
[1751700548140,5.05015144,148.44,148.43,6.76718251]
[1751700551146,5.05106029,148.44,148.43,6.76718251]
[1751700552629,5.05106029,148.44,148.43,10.57365908]
[1751700557146,5.05106029,148.44,148.43,6.76718251]
[1751700563043,5.05106029,148.44,148.43,10.57365908]
[1751700564043,5.05106029,148.44,148.43,6.76718251]
[1751700566250,5.05106029,148.44,148.43,10.57365908]
[1751700581974,5.05106029,148.44,148.43,6.76718251]
[1751700582147,5.05106029,148.44,148.43,10.57365908]
[1751700586875,1e-08,148.47,148.43,10.57365908]
[1751700587065,5.05390833,148.46,148.44,3.80647657]
[1751700587371,5.05387505,148.45,148.44,3.80647657]
[1751700589275,5.05387505,148.45,148.44,10.54320521]
[1751700604185,5.05387505,148.45,148.43,6.76718251]
[1751700604481,5.05387505,148.44,148.43,10.57365908]
[1751700605681,5.05387505,148.44,148.43,29.22330794]
[1751700606065,1e-08,148.47,148.43,29.22330794]
[1751700606267,5.05136737,148.46,148.44,3.80647657]
[1751700606461,5.05136737,148.45,148.44,10.54320521]
[1751700608478,5.05136737,148.45,148.43,10.57365908]
[1751700608669,5.05136737,148.44,148.43,10.57365908]
[1751700614192,5.05136737,148.44,148.43,6.76718251]
[1751700615094,5.05136737,148.44,148.43,10.57365908]
[1751700615688,5.05136737,148.44,148.43,6.76718251]
[1751700618897,5.05136737,148.44,148.43,0.03]
[1751700628094,3.80647658,148.47,148.43,0.03]
[1751700628287,11.36128331,148.46,148.43,0.03]
[1751700628486,3.80647657,148.44,148.43,0.03]
[1751700628804,50.86144886,148.42,148.41,0.03]
[1751700628994,18.64964886,148.41,148.4,0.03]
[1751700629181,42.73149096,148.41,148.4,0.03]
[1751700629382,49.46958138,148.41,148.4,0.03]
[1751700631299,57.85445954,148.41,148.4,0.03]
[1751700632087,91.71445954,148.41,148.4,0.03]
[1751700633297,83.32958138,148.41,148.4,0.03]
[1751700634003,68.1036751,148.41,148.4,0.03]
[1751700635405,11.78754967,148.41,148.4,0.03]
[1751700635586,11.3212561,148.41,148.4,0.03]
[1751700635907,5.04945925,148.41,148.4,0.03]
[1751700636409,5.04945925,148.42,148.4,0.03]
[1751700637606,8.85593582,148.42,148.4,0.03]
[1751700637908,3.80647657,148.41,148.4,0.03]
[1751700638809,8.85593582,148.41,148.4,0.03]
[1751700639004,15.59402624,148.41,148.4,0.03]
[1751700641899,17.74113106,148.41,148.4,0.03]
[1751700646619,51.68113106,148.41,148.4,0.03]
[1751700652322,70.33077992,148.41,148.4,0.03]
[1751700656222,76.28436131,148.41,148.4,0.03]
[1751700656421,76.28436131,148.41,148.38,0.03]
[1751700656422,26.0,148.39,148.38,0.03]
[1751700656612,70.94304064,148.39,148.38,0.03]
[1751700657828,77.68203922,148.39,148.38,0.03]
[1751700659299,96.33168808,148.39,148.38,0.03]
[1751700660306,70.33168808,148.39,148.38,0.03]
[1751700660508,96.33168808,148.39,148.38,0.03]
[1751700661532,70.33168808,148.39,148.38,0.03]
[1751700662311,26.0,148.36,148.33,0.06]
[1751700662513,5.95358139,148.34,148.33,0.06]
[1751700662725,11.00304064,148.34,148.33,0.06]
[1751700663311,5.04945925,148.34,148.33,0.06]
[1751700663508,33.96,148.35,148.33,0.06]
[1751700664322,5.02181416,148.34,148.33,0.06]
[1751700666228,17.7166656,148.34,148.33,0.06]
[1751700666813,36.36631446,148.34,148.33,0.06]
[1751700667021,42.64129384,148.34,148.33,0.06]
[1751700667614,44.75119262,148.34,148.33,0.06]
[1751700671333,26.0,148.31,148.28,0.06]
[1751700671532,44.95539555,148.3,148.28,0.06]
[1751700671733,5.02181416,148.29,148.28,0.06]
[1751700679145,33.98,148.3,148.28,0.06]
[1751700679346,5.95358139,148.29,148.28,0.06]
[1751700679551,10.97799722,148.29,148.28,0.06]
[1751700680439,5.02441583,148.29,148.28,0.06]
[1751700684755,38.69636457,148.31,148.28,6.01358139]
[1751700684756,33.98,148.31,148.28,6.01358139]
[1751700684951,22.2,148.32,148.29,5.95358139]
[1751700685138,5.02292216,148.31,148.29,5.95358139]
[1751700686843,5.02292216,148.31,148.29,12.6967687]
[1751700687861,5.02292216,148.31,148.29,6.74318731]
[1751700688847,5.02292216,148.31,148.28,12.75757923]
[1751700690161,5.02292216,148.32,148.28,12.75757923]
[1751700692759,5.02292216,148.31,148.28,12.75757923]
[1751700692963,5.02292216,148.32,148.28,6.80399784]
[1751700693163,5.02292216,148.31,148.28,6.80399784]
[1751700693345,5.02292216,148.32,148.28,6.80399784]
[1751700693546,5.02292216,148.31,148.28,12.75757923]
[1751700693758,5.02292216,148.32,148.28,12.75757923]
[1751700693963,5.02292216,148.31,148.28,12.75757923]
[1751700694150,5.02292216,148.32,148.28,12.75757923]
[1751700694349,5.02292216,148.31,148.28,12.75757923]
[1751700694649,5.02292216,148.32,148.28,12.75757923]
[1751700694846,5.02292216,148.31,148.28,6.80399784]
[1751700695347,5.02292216,148.3,148.28,6.80399784]
[1751700695551,5.02292216,148.29,148.28,0.06]
[1751700697770,33.98,148.3,148.28,0.06]
[1751700698346,5.03546131,148.29,148.28,0.06]
[1751700698554,5.03546131,148.29,148.28,6.01358139]
[1751700699146,5.03546131,148.29,148.28,0.06]
[1751700699547,5.03546131,148.3,148.28,0.06]
[1751700699753,5.03546131,148.29,148.28,0.06]
[1751700699949,5.03546131,148.3,148.28,0.06]
[1751700700166,5.03717776,148.3,148.29,5.95358139]
[1751700700474,5.03717776,148.32,148.29,5.95358139]
[1751700700672,5.03717776,148.31,148.29,5.95358139]
[1751700700977,6.28414415,148.35,148.3,5.95358139]
[1751700701167,5.03814339,148.34,148.31,5.95358139]
[1751700701373,5.03814339,148.33,148.31,5.95358139]
[1751700701678,5.03814339,148.32,148.31,12.69621506]
[1751700705264,5.03814339,148.32,148.31,5.95358139]
[1751700705971,5.03814339,148.32,148.28,23.66399244]
[1751700706157,5.03814339,148.31,148.3,5.95358139]
[1751700707180,5.03814339,148.31,148.3,12.69666972]
[1751700708361,5.03814339,148.31,148.29,6.743459]
[1751700708564,5.03814339,148.3,148.29,6.743459]
[1751700709450,5.03814339,148.3,148.29,12.69704039]
[1751700717463,5.03814339,148.3,148.28,6.80399784]
[1751700717665,6.28414415,148.32,148.29,5.95358139]
[1751700717980,5.04834236,148.31,148.29,5.95358139]
[1751700718160,5.04834236,148.3,148.29,5.95358139]
[1751700720483,5.04834236,148.3,148.29,12.69712444]
[1751700722583,5.04834236,148.3,148.29,5.95358139]
[1751700722787,11.00192375,148.3,148.28,0.06]
[1751700722987,26.0,148.27,148.26,0.2]
[1751700723170,42.92676896,148.27,148.26,0.2]
[1751700723779,51.338755,148.27,148.26,0.2]
[1751700723990,65.18834236,148.27,148.26,0.2]
[1751700724289,65.18834236,148.27,148.26,0.02989941]
[1751700724290,11.3542899,148.27,148.26,0.02989941]
[1751700724464,45.4942899,148.27,148.26,0.02989941]
[1751700725371,39.18834236,148.27,148.26,0.02989941]
[1751700726188,51.44787129,148.27,148.26,0.02989941]
[1751700727286,45.14192375,148.27,148.26,0.02989941]
[1751700732886,39.18834236,148.27,148.26,0.02989941]
[1751700734591,45.14192375,148.27,148.26,0.02989941]
[1751700739103,39.18834236,148.27,148.26,0.02989941]
[1751700744023,5.04834236,148.27,148.26,0.02989941]
[1751700744230,5.04834236,148.27,148.26,5.9834808]
[1751700744405,39.16834236,148.29,148.26,0.02989941]
[1751700744605,5.04834236,148.28,148.26,5.9834808]
[1751700744818,5.04834236,148.27,148.26,5.9834808]
[1751700745017,5.04834236,148.28,148.26,5.9834808]
[1751700745331,5.04834236,148.27,148.26,5.9834808]
[1751700745630,5.04834236,148.28,148.26,5.9834808]
[1751700745930,5.04834236,148.27,148.26,5.9834808]
[1751700746333,34.12,148.29,148.26,12.72837584]
[1751700747207,34.12,148.29,148.26,0.02989941]
[1751700748140,5.03623283,148.28,148.26,0.02989941]
[1751700748430,5.03623283,148.27,148.26,0.02989941]
[1751700753436,39.13623283,148.27,148.26,0.02989941]
[1751700763326,5.03623283,148.27,148.26,3.84592659]
[1751700763731,5.03623283,148.27,148.26,0.02989941]
[1751700765234,5.03623283,148.27,148.26,10.59083418]
[1751700765436,5.03623283,148.27,148.26,0.02989941]
[1751700766722,5.03623283,148.27,148.26,6.774807]
[1751700766945,42.99226001,148.27,148.25,0.2]
[1751700767134,11.34710493,148.26,148.25,0.2]
[1751700778260,5.03623283,148.26,148.25,0.2]
[1751700780861,11.34710493,148.26,148.25,0.2]
[1751700788570,5.03623283,148.26,148.23,0.2]
[1751700788770,45.46827551,148.25,148.23,0.2]
[1751700788966,5.03623283,148.24,148.23,0.2]
[1751700791477,18.0940931,148.24,148.23,0.2]
[1751700791786,21.91116888,148.24,148.23,0.2]
[1751700792604,11.34827551,148.24,148.23,0.2]
[1751700793373,5.03623283,148.24,148.23,0.2]
[1751700793574,39.17623283,148.24,148.23,0.2]
[1751700793793,5.03623283,148.24,148.23,0.2]
[1751700801599,5.03623283,148.24,148.23,6.94627268]
[1751700801799,39.15623283,148.24,148.23,10.76334846]
[1751700805307,5.03623283,148.24,148.23,10.76334846]
[1751700812911,5.03623283,148.24,148.23,29.41299732]
[1751700814317,5.03623283,148.24,148.23,6.94627268]
[1751700814519,5.03623283,148.24,148.23,10.76334846]
[1751700819119,0.03,148.26,148.23,10.76334846]
[1751700819319,0.03,148.26,148.25,3.81707578]
[1751700819526,5.07711666,148.26,148.25,3.81707578]
[1751700821436,5.07711666,148.26,148.25,10.56243834]
[1751700835853,5.07711666,148.26,148.24,6.74581759]
[1751700836029,0.03,148.26,148.25,3.81707578]
[1751700836221,5.07423923,148.26,148.25,3.81707578]
[1751700836646,5.07423923,148.26,148.24,6.74581759]
[1751700836828,0.03,148.26,148.25,3.81707578]
[1751700837021,5.07397117,148.26,148.25,3.81707578]
[1751700838225,5.07397117,148.26,148.25,10.56243834]
[1751700838426,5.07663143,148.26,148.25,10.56243834]
[1751700840346,0.03,148.26,148.25,10.56243834]
[1751700840526,5.07816266,148.26,148.25,10.56243834]
[1751700842837,5.07816266,148.26,148.25,10.62243834]
[1751700845252,5.07816266,148.26,148.25,3.87707578]
[1751700849758,11.38645195,148.26,148.25,0.06]
[1751700849956,45.44645195,148.26,148.25,0.06]
[1751700855359,39.13816266,148.26,148.25,0.06]
[1751700865070,45.44645195,148.26,148.25,0.06]
[1751700866060,39.13816266,148.26,148.25,0.06]
[1751700866883,39.09816266,148.26,148.25,10.62243834]
[1751700867980,39.09816266,148.26,148.25,3.87707578]
[1751700868983,39.09816266,148.26,148.25,0.06]
[1751700869567,39.09816266,148.26,148.25,3.87707578]
[1751700869762,34.05,148.26,148.25,3.87707578]
[1751700869975,39.09194065,148.26,148.25,3.87707578]
[1751700872387,39.09194065,148.26,148.25,0.06]
[1751700875589,5.073392,148.26,148.25,0.06]
[1751700875813,39.093392,148.26,148.25,0.06]
[1751700876684,5.073392,148.26,148.25,3.87707578]
[1751700877990,5.073392,148.26,148.25,10.62243834]
[1751700881291,0.03,148.26,148.25,10.62243834]
[1751700881473,5.0731787,148.26,148.25,10.62243834]
[1751700894208,5.0731787,148.26,148.25,0.06]
[1751700894412,5.0731787,148.26,148.25,3.87707578]
[1751700897114,5.0731787,148.26,148.25,10.62243834]
[1751700903106,5.0731787,148.26,148.25,0.06]
[1751700903318,5.0731787,148.26,148.25,3.87707578]
[1751700905200,5.0731787,148.26,148.25,10.62243834]
[1751700907737,5.0731787,148.26,148.25,3.87707578]
[1751700908499,5.0731787,148.26,148.25,0.06]
[1751700910225,5.0731787,148.26,148.25,3.87707578]
[1751700910523,5.0731787,148.26,148.25,10.62243834]
[1751700914331,5.0731787,148.26,148.25,3.87707578]
[1751700917227,5.0731787,148.26,148.25,0.06]
[1751700917409,5.0731787,148.26,148.25,10.62243834]
[1751700919235,5.0731787,148.26,148.25,0.06]
[1751700919436,5.0731787,148.26,148.25,3.87707578]
[1751700921812,5.0731787,148.26,148.25,10.62243834]
[1751700929319,5.0731787,148.26,148.25,3.87707578]
[1751700933868,5.0731787,148.26,148.25,0.06]
[1751700934046,11.37715208,148.26,148.25,0.06]
[1751700935345,45.40255016,148.26,148.25,0.06]
[1751700935564,52.14745775,148.26,148.25,0.06]
[1751700936148,55.96453353,148.26,148.25,0.06]
[1751700936370,49.65756122,148.26,148.23,0.2]
[1751700936548,15.16708617,148.25,148.23,0.2]
[1751700936742,11.35001039,148.24,148.23,0.2]
[1751700938983,18.09582798,148.24,148.23,0.2]
[1751700939287,21.91290376,148.24,148.23,0.2]
[1751700939786,41.60847122,148.24,148.23,0.2]
[1751700940168,50.0021926,148.24,148.22,0.1]
[1751700940378,21.90133192,148.23,148.22,0.1]
[1751700941089,55.96133192,148.23,148.22,0.1]
[1751700944294,49.66892631,148.23,148.22,0.1]
[1751700951492,74.61098078,148.23,148.22,0.1]
[1751700951986,44.64964886,148.2,148.19,0.06]
[1751700952181,87.55230249,148.2,148.19,0.06]
[1751700953303,99.63017929,148.2,148.19,0.06]
[1751700953510,94.29994081,148.2,148.19,0.06]
[1751700954300,100.56373068,148.2,148.19,0.06]
[1751700957281,94.29994081,148.2,148.19,0.06]
[1751700959996,100.56373068,148.2,148.19,0.06]
[1751700960404,22.2,148.19,148.18,0.1]
[1751700960586,38.02265363,148.19,148.18,0.1]
[1751700960983,56.67230249,148.19,148.18,0.1]
[1751700962005,59.60332037,148.19,148.18,0.1]
[1751700962210,63.42039615,148.19,148.18,0.1]
[1751700962899,44.77074729,148.19,148.18,0.1]
[1751700963211,44.64964886,148.16,148.15,0.1]
[1751700963390,83.79522671,148.16,148.15,0.1]
[1751700963595,34.86265363,148.16,148.15,0.1]
[1751700963800,69.08265363,148.16,148.15,0.1]
[1751700965698,75.83211367,148.16,148.15,0.1]
[1751700966090,37.79503789,148.16,148.15,0.1]
[1751700966293,72.01503789,148.16,148.15,0.1]
[1751700968112,77.98793581,148.16,148.15,0.1]
[1751700968912,77.93579899,148.16,148.15,0.1]
[1751700969896,43.71579899,148.16,148.15,0.1]
[1751700970103,77.93579899,148.16,148.15,0.1]
[1751700971218,43.71579899,148.16,148.15,0.1]
[1751700971400,77.93579899,148.16,148.15,0.1]
[1751700976221,90.61254993,148.16,148.15,0.1]
[1751700976429,102.82724914,148.16,148.15,0.1]
[1751700979525,18.64964886,148.15,148.13,0.1]
[1751700979713,35.86581236,148.15,148.13,0.1]
[1751700980430,35.86731578,148.15,148.13,0.1]
[1751700980626,8.1672,148.13,148.11,0.2]
[1751700980826,37.94828341,148.12,148.1,0.7725536]
[1751700981136,55.61598781,148.11,148.1,0.7725536]
[1751700981318,89.93598781,148.11,148.1,0.7725536]
[1751700981514,96.68772638,148.11,148.1,0.7725536]
[1751700982128,70.70002198,148.11,148.1,0.7725536]
[1751700982314,105.02002198,148.11,148.1,0.7725536]
[1751700982921,70.70002198,148.11,148.1,0.7725536]
[1751700983118,105.02002198,148.11,148.1,0.7725536]
[1751700983525,114.64213988,148.11,148.1,0.7725536]
[1751700984532,80.32213988,148.11,148.1,0.7725536]
[1751700984721,114.64213988,148.11,148.1,0.7725536]
[1751700986233,108.66924196,148.11,148.1,0.7725536]
[1751700986536,114.64213988,148.11,148.1,0.7725536]
[1751700988040,106.30984428,148.11,148.1,0.7725536]
[1751700989934,5.97289792,148.07,148.05,1.5764]
[1751700990109,39.29344103,148.06,148.05,1.5764]
[1751700992216,46.04745967,148.06,148.05,1.5764]
[1751700992741,39.29344103,148.06,148.05,1.5764]
[1751700997024,4.99344103,148.06,148.05,14.30377275]
[1751700997224,39.27344103,148.06,148.05,14.30377275]
[1751700997932,4.99344103,148.06,148.05,14.30377275]
[1751700998125,34.3,148.06,148.05,14.30377275]
[1751700998326,34.3,148.07,148.05,14.30377275]
[1751700998527,22.2,148.09,148.06,5.97289792]
[1751700998838,39.30201753,148.08,148.06,5.97289792]
[1751700999143,5.00201753,148.07,148.06,5.97289792]
[1751701000543,34.3,148.07,148.06,5.97289792]
[1751701000742,39.30201753,148.07,148.05,8.33087483]
[1751701000949,34.3,148.07,148.06,5.97289792]
[1751701001149,39.3030224,148.07,148.06,5.97289792]
[1751701002056,39.3030224,148.07,148.06,12.72691656]
[1751701002344,34.28,148.07,148.06,12.72691656]
[1751701003436,34.28,148.08,148.06,12.72691656]
[1751701003643,34.28,148.08,148.07,5.97289792]
[1751701003833,39.28645787,148.08,148.07,3.82507823]
[1751701004433,5.00645787,148.08,148.07,10.57864073]
[1751701004642,56.48,148.09,148.07,10.57864073]
[1751701004843,22.2,148.09,148.08,3.82507823]
[1751701005138,39.28844393,148.09,148.08,3.82507823]
[1751701006248,5.00844393,148.09,148.08,10.57818465]
[1751701006452,34.26,148.09,148.08,10.57818465]
[1751701006747,39.26844393,148.09,148.08,10.57818465]
[1751701007141,34.26,148.09,148.08,10.57818465]
[1751701007762,34.26,148.09,148.08,5.97590098]
[1751701009265,22.2,148.12,148.08,5.97590098]
[1751701009446,39.27324437,148.11,148.08,5.97590098]
[1751701009761,5.04324437,148.1,148.08,12.728971]
[1751701010064,34.26,148.09,148.08,12.728971]
[1751701010764,39.27346925,148.09,148.08,12.728971]
[1751701021274,39.2799221,148.09,148.08,12.728971]
[1751701023056,39.2199221,148.09,148.08,12.728971]
[1751701023771,39.2199221,148.09,148.08,5.97590098]
[1751701024075,39.2199221,148.09,148.06,6.75401864]
[1751701024076,39.2199221,148.09,148.07,5.97590098]
[1751701024267,5.0199221,148.08,148.07,5.97590098]
[1751701025759,5.0199221,148.08,148.07,12.72946348]
[1751701027873,5.0199221,148.08,148.07,3.82469597]
[1751701028666,5.0199221,148.08,148.06,6.75401864]
[1751701028864,5.0199221,148.08,148.07,3.82469597]
[1751701030156,5.0199221,148.08,148.07,10.57825847]
[1751701031180,5.0199221,148.08,148.06,6.75401864]
[1751701031477,5.0199221,148.08,148.07,3.82469597]
[1751701032181,5.0199221,148.08,148.07,10.57825847]
[1751701039688,5.0199221,148.08,148.05,12.21542545]
[1751701039882,39.1799221,148.07,148.05,12.21542545]
[1751701040089,34.16,148.07,148.06,3.82469597]
[1751701040283,39.19173959,148.07,148.06,3.82469597]
[1751701042587,39.19173959,148.07,148.06,10.57871461]
[1751701046098,39.19173959,148.07,148.06,3.82469597]
[1751701049303,39.19173959,148.07,148.06,10.57871461]
[1751701056015,5.03173959,148.07,148.06,6.75401864]
[1751701056309,5.03173959,148.07,148.06,10.57871461]
[1751701058809,5.03173959,148.07,148.06,10.63871461]
[1751701070930,5.03173959,148.07,148.06,6.81401864]
[1751701071228,5.03173959,148.07,148.06,10.63871461]
[1751701076838,5.03173959,148.07,148.06,6.81401864]
[1751701077039,5.03173959,148.07,148.06,10.63871461]
[1751701088770,5.03173959,148.07,148.06,6.81401864]
[1751701088978,5.03173959,148.07,148.06,10.63871461]
[1751701092043,5.03173959,148.07,148.06,6.81401864]
[1751701092275,11.30664222,148.07,148.06,0.06]
[1751701094772,11.32345177,148.07,148.06,0.06]
[1751701094949,5.03264523,148.07,148.06,0.06]
[1751701095872,5.03158909,148.07,148.06,0.06]
[1751701110176,39.13158909,148.07,148.06,0.06]
[1751701113090,39.13158909,148.07,148.06,0.06]
[1751701124396,5.03158909,148.07,148.06,0.06]
[1751701124610,39.13158909,148.07,148.06,0.06]
[1751701137298,45.42107546,148.07,148.06,0.06]
[1751701140602,52.17463796,148.07,148.06,0.06]
[1751701143589,45.88515159,148.07,148.05,0.06]
[1751701143785,11.33563108,148.06,148.05,0.06]
[1751701148519,33.53563108,148.06,148.05,0.06]
[1751701152725,40.28964972,148.06,148.05,0.06]
[1751701153691,74.36964972,148.06,148.05,0.06]
[1751701160909,68.49035256,148.06,148.05,0.06]
[1751701161216,68.49035256,148.06,148.04,0.2]
[1751701161217,22.47434483,148.05,148.04,0.2]
[1751701161415,33.80833722,148.05,148.04,0.2]
[1751701162824,40.56281205,148.05,148.04,0.2]
[1751701163417,48.47434483,148.01,148.0,0.1]
[1751701163718,87.76593392,148.01,148.0,0.1]
[1751701165098,94.52223416,148.01,148.0,0.1]
[1751701165523,60.26223416,148.01,148.0,0.1]
[1751701165819,94.56223416,148.01,148.0,0.1]
[1751701166117,60.26223416,148.01,148.0,0.1]
[1751701166326,94.56223416,148.01,148.0,0.1]
[1751701166930,100.86337053,148.01,148.0,0.1]
[1751701167231,94.56223416,148.01,148.0,0.1]
[1751701168303,100.84593628,148.01,148.0,0.1]
[1751701168812,94.56223416,148.01,148.0,0.1]
[1751701169007,82.19578909,148.01,148.0,0.1]
[1751701174231,75.9125853,148.01,148.0,0.1]
[1751701176334,82.19578909,148.01,148.0,0.1]
[1751701181441,46.08788933,148.01,148.0,0.1]
[1751701181633,49.9125853,148.01,148.0,0.1]
[1751701188344,56.19578909,148.01,148.0,0.1]
[1751701194147,52.37109312,148.01,148.0,0.1]
[1751701194320,56.19578909,148.01,148.0,0.1]
[1751701196553,52.37109312,148.01,148.0,0.1]
[1751701196854,56.19578909,148.01,148.0,0.1]
[1751701197044,49.9125853,148.01,148.0,0.1]
[1751701197238,56.19578909,148.01,148.0,0.1]
[1751701198240,52.37109312,148.01,148.0,0.1]
[1751701199830,18.07109312,148.01,148.0,0.1]
[1751701200037,52.29109312,148.01,148.0,0.1]
[1751701201051,74.76543795,148.01,148.0,0.1]
[1751701201232,18.64964886,148.0,147.95,0.1]
[1751701201435,43.07628506,147.99,147.95,0.1]
[1751701201621,5.03158909,147.98,147.95,0.1]
[1751701201827,39.29158909,147.97,147.95,0.1]
[1751701202052,5.03158909,147.96,147.95,0.1]
[1751701209438,5.03158909,147.96,147.95,3.92469597]
[1751701211949,5.03158909,147.96,147.95,10.68373618]
[1751701215071,5.03158909,147.96,147.95,6.85904021]
[1751701215256,5.03158909,147.96,147.95,10.68373618]
[1751701218269,5.03158909,147.96,147.95,6.85904021]
[1751701218447,5.03158909,147.96,147.95,10.68373618]
[1751701229981,34.22,147.98,147.95,10.68373618]
[1751701230183,5.0443299,147.97,147.95,6.85904021]
[1751701230361,40.52541237,147.98,147.96,3.82469597]
[1751701230566,5.04454904,147.97,147.95,6.85904021]
[1751701230872,5.04454904,147.96,147.95,6.85904021]
[1751701231765,5.04454904,147.96,147.95,10.68373618]
[1751701241085,5.04454904,147.96,147.95,0.1]
[1751701241389,5.04454904,147.96,147.95,3.92469597]
[1751701242292,5.04454904,147.96,147.95,0.1]
[1751701242492,5.04454904,147.96,147.95,3.92469597]
[1751701244393,5.04454904,147.96,147.95,10.68373618]
[1751701247798,5.04148239,147.96,147.95,10.68373618]
[1751701257504,5.04148239,147.96,147.95,6.85904021]
[1751701257695,5.04148239,147.96,147.95,10.68373618]
[1751701264726,34.14,147.99,147.95,27.58133672]
[1751701264935,5.0454432,147.98,147.95,23.75664075]
[1751701265131,34.14,147.99,147.97,3.82469597]
[1751701265319,34.14,148.0,147.98,3.82469597]
[1751701265510,5.04388512,147.99,147.98,3.82469597]
[1751701265839,5.04388512,147.99,147.98,10.58236592]
[1751701267123,6.33185299,148.04,147.98,46.12618966]
[1751701267442,5.04423934,148.03,147.98,42.30149369]
[1751701267622,5.04423934,148.02,147.98,42.30149369]
[1751701267813,34.21,148.04,148.01,3.82469597]
[1751701268011,34.21,148.04,148.03,3.82469597]
[1751701268217,39.25000972,148.04,148.03,3.82469597]
[1751701268631,5.07000972,148.04,148.03,3.82469597]
[1751701268828,39.23000972,148.04,148.03,3.82469597]
[1751701269134,5.07000972,148.04,148.03,10.58008339]
[1751701274323,0.03,148.04,148.03,10.58008339]
[1751701274542,5.07000972,148.04,148.03,10.58008339]
[1751701274745,0.03,148.04,148.03,10.58008339]
[1751701275051,5.07000972,148.04,148.03,10.58008339]
[1751701275260,0.03,148.04,148.03,10.58008339]
[1751701275550,5.07000972,148.04,148.03,10.58008339]
[1751701275753,0.03,148.04,148.03,10.58008339]
[1751701275935,5.07000972,148.04,148.03,10.58008339]
[1751701276130,0.03,148.04,148.03,10.58008339]
[1751701276324,5.07000972,148.04,148.03,10.58008339]
[1751701276520,0.03,148.04,148.03,10.58008339]
[1751701276750,5.07000972,148.04,148.03,10.58008339]
[1751701276940,0.03,148.04,148.03,10.58008339]
[1751701299072,0.03,148.04,148.01,3.82469597]
[1751701299272,5.05125608,148.04,148.01,3.82469597]
[1751701299469,0.03,148.04,148.01,3.82469597]
[1751701299670,5.05125608,148.04,148.01,3.82469597]
[1751701299870,0.03,148.04,148.01,3.82469597]
[1751701300088,5.05125608,148.04,148.01,3.82469597]
[1751701300273,0.03,148.04,148.01,3.82469597]
[1751701300471,5.05125608,148.04,148.01,3.82469597]
[1751701300872,5.05125608,148.04,148.0,6.75657235]
[1751701301069,5.05125608,148.04,148.01,3.82469597]
[1751701301266,5.02125608,148.03,148.01,3.82469597]
[1751701304379,0.03,148.04,148.01,3.82469597]
[1751701304578,5.02830266,148.03,148.01,3.82469597]
[1751701304764,0.03,148.04,148.01,3.82469597]
[1751701305085,5.02830266,148.03,148.01,3.82469597]
[1751701305289,0.03,148.04,148.01,3.82469597]
[1751701305584,5.0285528,148.03,148.01,3.82469597]
[1751701305778,0.03,148.04,148.01,3.82469597]
[1751701305978,5.0285528,148.03,148.01,3.82469597]
[1751701306189,0.03,148.04,148.01,10.58094301]